fUST/lending_fUST_20250511
["ID","MTS","AMOUNT","RATE_DAILY","PERIOD"]
[360613740,1746903036427,-1505.09,8.219e-05,2]
[360613741,1746903036437,-619.59,8.219e-05,2]
[360613742,1746903036447,-400.0,8.219e-05,2]
[360613743,1746903036456,-1586.54,8.219e-05,2]
[360613744,1746903036466,-400.0,8.219e-05,2]
[360613745,1746903036476,-400.0,8.219e-05,2]
[360613746,1746903036492,-9477.25,8.219e-05,2]
[360613747,1746903036501,-400.0,8.219e-05,2]
[360613748,1746903036510,-400.0,8.219e-05,2]
[360613749,1746903036520,-4078.39,8.219e-05,2]
[360613750,1746903036529,-466.28,8.219e-05,2]
[360613751,1746903036540,-400.0,8.219e-05,2]
[360613752,1746903036549,-400.0,8.219e-05,2]
[360613753,1746903036559,-400.0,8.219e-05,2]
[360613754,1746903036569,-445.29,8.219e-05,2]
[360613755,1746903036578,-1513.38,8.219e-05,2]
[360613756,1746903036588,-838.35,8.219e-05,2]
[360613757,1746903036597,-400.0,8.219e-05,2]
[360613758,1746903036607,-400.0,8.219e-05,2]
[360613759,1746903036616,-400.0,8.219e-05,2]
[360613760,1746903036626,-400.0,8.219e-05,2]
[360613761,1746903036635,-7643.12,8.219e-05,2]
[360613762,1746903036645,-400.0,8.219e-05,2]
[360613763,1746903036654,-9983.56,8.219e-05,2]
[360613764,1746903036665,-494.22,8.219e-05,2]
[360613765,1746903036675,-512.43,8.219e-05,2]
[360613766,1746903036685,-400.0,8.219e-05,2]
[360613767,1746903036695,-1125.69,8.219e-05,2]
[360613768,1746903036704,-4951.65,8.219e-05,2]
[360613769,1746903036714,-400.0,8.219e-05,2]
[360613770,1746903036723,-1367.5,8.219e-05,2]
[360613771,1746903036733,-552.2,8.219e-05,2]
[360613772,1746903036742,-1079.19,8.219e-05,2]
[360613773,1746903036752,-400.0,8.219e-05,2]
[360613774,1746903036762,-552.58,8.219e-05,2]
[360613775,1746903036771,-400.0,8.219e-05,2]
[360613776,1746903036780,-400.0,8.219e-05,2]
[360613777,1746903036790,-1670.57,8.219e-05,2]
[360613778,1746903036800,-10028.78,8.219e-05,2]
[360613779,1746903036810,-400.0,8.219e-05,2]
[360613780,1746903036820,-4468.23,8.219e-05,2]
[360613781,1746903036829,-538.56,8.219e-05,2]
[360613782,1746903036839,-400.0,8.219e-05,2]
[360613783,1746903036848,-2883.18,8.219e-05,2]
[360613784,1746903036858,-400.0,8.219e-05,2]
[360613785,1746903036868,-554.25,8.219e-05,2]
[360613786,1746903036878,-519.72,8.219e-05,2]
[360613787,1746903036888,-984.52,8.219e-05,2]
[360613788,1746903036898,-2498.77,8.219e-05,2]
[360613789,1746903036907,-400.0,8.219e-05,2]
[360613790,1746903036918,-893.2,8.219e-05,2]
[360613791,1746903036928,-3197.16,8.219e-05,2]
[360613792,1746903036937,-400.0,8.219e-05,2]
[360613793,1746903036947,-3256.49,8.219e-05,2]
[360613794,1746903036956,-400.0,8.219e-05,2]
[360613795,1746903036965,-400.0,8.219e-05,2]
[360613796,1746903036975,-400.0,8.219e-05,2]
[360613797,1746903036985,-2916.93,8.219e-05,2]
[360613798,1746903036995,-400.0,8.219e-05,2]
[360613799,1746903037005,-400.0,8.219e-05,2]
[360613800,1746903037015,-151.0,8.219e-05,2]
[360613801,1746903037025,-151.0,8.219e-05,2]
[360613802,1746903037035,-400.0,8.219e-05,2]
[360613803,1746903037045,-2644.55,8.219e-05,2]
[360613804,1746903037054,-156.98674442,8.219e-05,2]
[360613805,1746903037064,-400.0,8.219e-05,2]
[360613806,1746903037074,-400.0,8.219e-05,2]
[360613807,1746903037083,-400.0,8.219e-05,2]
[360613808,1746903037093,-400.0,8.219e-05,2]
[360613809,1746903037105,-400.0,8.219e-05,2]
[360613810,1746903037114,-151.0,8.219e-05,2]
[360613811,1746903037124,-328.43834136,8.219e-05,2]
[360613812,1746903037133,-1200.42,8.219e-05,2]
[360613813,1746903037143,-260.55847745,8.219e-05,2]
[360613814,1746903037153,-1557.69,8.219e-05,2]
[360613815,1746903037164,-523.0,8.219e-05,2]
[360613816,1746903037173,-400.0,8.219e-05,2]
[360613817,1746903037183,-911.54,8.219e-05,2]
[360613818,1746903037193,-400.0,8.219e-05,2]
[360613819,1746903037203,-400.0,8.219e-05,2]
[360613820,1746903037212,-151.0,8.219e-05,2]
[360613821,1746903037222,-151.0,8.219e-05,2]
[360613822,1746903037231,-151.0,8.219e-05,2]
[360613823,1746903037241,-151.0,8.219e-05,2]
[360613824,1746903037251,-151.0,8.219e-05,2]
[360613825,1746903037260,-168.016773,8.219e-05,2]
[360613826,1746903037270,-167.363887,8.219e-05,2]
[360613827,1746903037279,-167.363887,8.219e-05,2]
[360613828,1746903037289,-167.363887,8.219e-05,2]
[360613829,1746903037298,-167.363887,8.219e-05,2]
[360613830,1746903037307,-167.363887,8.219e-05,2]
[360613831,1746903037317,-167.363887,8.219e-05,2]
[360613832,1746903037327,-167.363887,8.219e-05,2]
[360613833,1746903037336,-167.363887,8.219e-05,2]
[360613834,1746903037346,-167.363887,8.219e-05,2]
[360613835,1746903037355,-167.363887,8.219e-05,2]
[360613836,1746903037365,-531.972711,8.219e-05,2]
[360613837,1746903037375,-531.972711,8.219e-05,2]
[360613838,1746903037385,-531.972711,8.219e-05,2]
[360613839,1746903037395,-531.972711,8.219e-05,2]
[360613840,1746903037408,-531.972711,8.219e-05,2]
[360613841,1746903037419,-531.972711,8.219e-05,2]
[360613842,1746903037429,-531.972711,8.219e-05,2]
[360613843,1746903037439,-531.972711,8.219e-05,2]
[360613844,1746903037450,-531.972711,8.219e-05,2]
[360613845,1746903037459,-531.972711,8.219e-05,2]
[360613846,1746903037469,-151.0,8.219e-05,2]
[360613847,1746903037480,-500.0,8.246e-05,2]
[360613848,1746903037489,-156.34442737,8.246e-05,2]
[360613849,1746903037499,-151.0,8.246e-05,2]
[360613850,1746903037509,-500.0,8.246e-05,2]
[360613851,1746903037519,-151.0,8.246e-05,2]
[360613852,1746903037529,-500.0,8.246e-05,2]
[360613853,1746903037538,-500.0,8.246e-05,2]
[360613854,1746903037548,-500.0,8.246e-05,2]
[360613855,1746903037558,-500.0,8.246e-05,2]
[360613856,1746903037568,-500.0,8.246e-05,2]
[360613857,1746903037578,-151.0,8.246e-05,2]
[360613858,1746903037587,-188.9705947,8.246e-05,2]
[360613859,1746903037596,-500.0,8.246e-05,2]
[360613860,1746903037606,-500.0,8.246e-05,2]
[360613861,1746903037615,-241.78637063,8.246e-05,2]
[360613862,1746903037625,-500.0,8.246e-05,2]
[360613863,1746903037634,-464.98048444,8.246e-05,2]
[360613864,1746903037644,-500.0,8.246e-05,2]
[360613865,1746903037654,-500.0,8.246e-05,2]
[360613866,1746903037663,-500.0,8.246e-05,2]
[360613867,1746903037672,-151.0,8.246e-05,2]
[360613868,1746903037682,-500.0,8.246e-05,2]
[360613869,1746903037691,-151.0,8.246e-05,2]
[360613870,1746903037701,-151.0,8.246e-05,2]
[360613871,1746903037710,-546.0,8.264e-05,2]
[360613872,1746903037720,-708.0,8.264e-05,2]
[360613873,1746903037731,-2239.0,8.264e-05,2]
[360613874,1746903037740,-167.363887,8.27e-05,2]
[360613875,1746903037749,-167.363887,8.27e-05,2]
[360613876,1746903037759,-531.972711,8.27e-05,2]
[360613877,1746903037768,-531.972711,8.27e-05,2]
[360613878,1746903037779,-500.0,8.274e-05,2]
[360613879,1746903037788,-201.39962805,8.274e-05,2]
[360613880,1746903037797,-413.13008994,8.274e-05,2]
[360613881,1746903037807,-151.0,8.274e-05,2]
[360613882,1746903037816,-500.0,8.274e-05,2]
[360613883,1746903037825,-221.3745622,8.274e-05,2]
[360613884,1746903037835,-516.22655662,8.274e-05,2]
[360613885,1746903037844,-500.0,8.274e-05,2]
[360613886,1746903037854,-500.0,8.274e-05,2]
[360613887,1746903037863,-151.0,8.274e-05,2]
[360613888,1746903037873,-500.0,8.274e-05,2]
[360613889,1746903037882,-164.75865955,8.274e-05,2]
[360613890,1746903037892,-500.0,8.274e-05,2]
[360613891,1746903037901,-500.0,8.274e-05,2]
[360613892,1746903037911,-500.0,8.274e-05,2]
[360613893,1746903037920,-500.0,8.274e-05,2]
[360613894,1746903037930,-500.0,8.274e-05,2]
[360613895,1746903037941,-151.0,8.274e-05,2]
[360613896,1746903037951,-151.0,8.274e-05,2]
[360613897,1746903037961,-157.8397362,8.28e-05,2]
[360613898,1746903037971,-310.5095296,8.28e-05,2]
[360613899,1746903037981,-568.8061225,8.28e-05,2]
[360613900,1746903037991,-318.2128365,8.28e-05,2]
[360613901,1746903038003,-153.0,8.28e-05,2]
[360613902,1746903038013,-153.0,8.28e-05,2]
[360613903,1746903038022,-153.0,8.28e-05,2]
[360613904,1746903038031,-157.8397362,8.28e-05,2]
[360613905,1746903038041,-153.0,8.28e-05,2]
[360613906,1746903038050,-153.0,8.28e-05,2]
[360613908,1746903038059,-155.8897023,8.28e-05,2]
[360613910,1746903038068,-153.0,8.28e-05,2]
[360613912,1746903038077,-153.0,8.28e-05,2]
[360613914,1746903038085,-362.8462185,8.28e-05,2]
[360613915,1746903038095,-153.0,8.28e-05,2]
[360613916,1746903038103,-362.8462185,8.28e-05,2]
[360613918,1746903038112,-362.8462185,8.28e-05,2]
[360613920,1746903038121,-368.6038278,8.28e-05,2]
[360613922,1746903038130,-368.6801952,8.29e-05,2]
[360613924,1746903038140,-500.0,8.301e-05,2]
[360613926,1746903038150,-155.41712481,8.301e-05,2]
[360613929,1746903038161,-500.0,8.301e-05,2]
[360613932,1746903038170,-500.0,8.301e-05,2]
[360613935,1746903038180,-500.0,8.301e-05,2]
[360613938,1746903038189,-151.0,8.301e-05,2]
[360613941,1746903038200,-500.0,8.301e-05,2]
[360613944,1746903038209,-500.0,8.301e-05,2]
[360613947,1746903038219,-500.0,8.301e-05,2]
[360613949,1746903038228,-500.0,8.301e-05,2]
[360613952,1746903038238,-500.0,8.301e-05,2]
[360613954,1746903038248,-500.0,8.301e-05,2]
[360613956,1746903038258,-269.86471972,8.301e-05,2]
[360613958,1746903038268,-174.52818969,8.301e-05,2]
[360613961,1746903038278,-2714.9,8.328e-05,2]
[360613962,1746903038288,-8334.29931079,8.328e-05,2]
[360613964,1746903038297,-500.0,8.329e-05,2]
[360613966,1746903038306,-500.0,8.329e-05,2]
[360613968,1746903038316,-500.0,8.329e-05,2]
[360613970,1746903038325,-500.0,8.329e-05,2]
[360613972,1746903038335,-152.28966148,8.329e-05,2]
[360613974,1746903038344,-500.0,8.329e-05,2]
[360613976,1746903038353,-517.63668399,8.329e-05,2]
[360613978,1746903038363,-500.0,8.329e-05,2]
[360613980,1746903038373,-500.0,8.329e-05,2]
[360613982,1746903038383,-234.84615895,8.329e-05,2]
[360613984,1746903038393,-500.0,8.329e-05,2]
[360613986,1746903038404,-191.6,8.33e-05,2]
[360613988,1746903038414,-500.0,8.356e-05,2]
[360613990,1746903038424,-367.056551,8.356e-05,2]
[360613992,1746903038433,-500.0,8.356e-05,2]
[360613994,1746903038443,-500.0,8.356e-05,2]
[360613996,1746903038453,-500.0,8.356e-05,2]
[360613998,1746903038463,-500.0,8.356e-05,2]
[360614000,1746903038472,-637.17406382,8.356e-05,2]
[360614002,1746903038482,-355.3789841,8.356e-05,2]
[360614004,1746903038491,-1034.7344249,8.369e-05,2]
[360614006,1746903038501,-167.363887,8.383e-05,2]
[360614008,1746903038510,-167.363887,8.383e-05,2]
[360614010,1746903038519,-531.972711,8.383e-05,2]
[360614012,1746903038528,-531.972711,8.383e-05,2]
[360614014,1746903038537,-434.73739196,8.383e-05,2]
[360614016,1746903038546,-500.0,8.383e-05,2]
[360614018,1746903038556,-500.0,8.383e-05,2]
[360614020,1746903038566,-500.0,8.383e-05,2]
[360614022,1746903038575,-500.0,8.383e-05,2]
[360614024,1746903038585,-378.47126472,8.387e-05,2]
[360614026,1746903038594,-369.94276848,8.393e-05,2]
[360614028,1746903038603,-500.0,8.393e-05,2]
[360614030,1746903038613,-469.63774343,8.393e-05,2]
[360614032,1746903038622,-440.99337418,8.393e-05,2]
[360614034,1746903038632,-500.0,8.393e-05,2]
[360614036,1746903038642,-536.53794162,8.393e-05,2]
[360614038,1746903038651,-504.0622359,8.393e-05,2]
[360614040,1746903038661,-501.0786614,8.393e-05,2]
[360614042,1746903038670,-614.61332246,8.393e-05,2]
[360614044,1746903038679,-500.0,8.393e-05,2]
[360614046,1746903038689,-500.0,8.393e-05,2]
[360614049,1746903038698,-500.0,8.393e-05,2]
[360614052,1746903038708,-500.0,8.393e-05,2]
[360614054,1746903038717,-500.0,8.393e-05,2]
[360614056,1746903038726,-500.0,8.393e-05,2]
[360614058,1746903038735,-503.81711862,8.393e-05,2]
[360614060,1746903038745,-500.0,8.393e-05,2]
[360614062,1746903038754,-500.0,8.393e-05,2]
[360614064,1746903038763,-500.0,8.393e-05,2]
[360614066,1746903038773,-500.0,8.393e-05,2]
[360614068,1746903038783,-443.13375754,8.393e-05,2]
[360614070,1746903038792,-500.0,8.393e-05,2]
[360614072,1746903038802,-500.0,8.393e-05,2]
[360614075,1746903038812,-500.0,8.393e-05,2]
[360614077,1746903038822,-501.08252237,8.393e-05,2]
[360614079,1746903038832,-500.0,8.393e-05,2]
[360614081,1746903038842,-626.09206994,8.393e-05,2]
[360614083,1746903038854,-500.82779148,8.393e-05,2]
[360614085,1746903038863,-500.0,8.393e-05,2]
[360614087,1746903038873,-500.0,8.393e-05,2]
[360614089,1746903038883,-500.0,8.393e-05,2]
[360614091,1746903038892,-500.0,8.393e-05,2]
[360614093,1746903038902,-504.38217674,8.393e-05,2]
[360614095,1746903038911,-500.0,8.393e-05,2]
[360614097,1746903038921,-500.0,8.393e-05,2]
[360614099,1746903038930,-500.0,8.393e-05,2]
[360614101,1746903038939,-500.0,8.393e-05,2]
[360614103,1746903038948,-500.0,8.393e-05,2]
[360614105,1746903038958,-500.0,8.393e-05,2]
[360614107,1746903038968,-500.0,8.393e-05,2]
[360614109,1746903038977,-500.0,8.393e-05,2]
[360614111,1746903038986,-500.0,8.393e-05,2]
[360614113,1746903038996,-500.41062587,8.393e-05,2]
[360614115,1746903039005,-458.13958036,8.393e-05,2]
[360614117,1746903039015,-500.0,8.393e-05,2]
[360614119,1746903039024,-500.0,8.393e-05,2]
[360614121,1746903039033,-500.0,8.393e-05,2]
[360614123,1746903039042,-500.0,8.393e-05,2]
[360614125,1746903039052,-502.63684409,8.393e-05,2]
[360614127,1746903039061,-500.0,8.393e-05,2]
[360614129,1746903039070,-500.0,8.393e-05,2]
[360614131,1746903039079,-500.0,8.393e-05,2]
[360614133,1746903039088,-500.0,8.393e-05,2]
[360614135,1746903039097,-502.70056271,8.393e-05,2]
[360614137,1746903039106,-500.0,8.393e-05,2]
[360614139,1746903039116,-500.0,8.393e-05,2]
[360614141,1746903039125,-151.0,8.4e-05,2]
[360614143,1746903039134,-500.0,8.411e-05,2]
[360614145,1746903039143,-500.0,8.411e-05,2]
[360614146,1746903039152,-500.0,8.411e-05,2]
[360614147,1746903039162,-500.0,8.411e-05,2]
[360614149,1746903039171,-232149.58593047,8.412e-05,2]
[360614170,1746903040308,-597.4,8.219e-05,2]
[360614171,1746903040318,-400.0,8.219e-05,2]
[360614172,1746903040328,-5410.1523422,8.412e-05,2]
[360614789,1746903051264,1000.0,7.993e-05,2]
[360614790,1746903056902,5000.0,0.00013,7]
[360614795,1746903380172,302.0,0.00022,120]
[360614800,1746903585458,2436.6918948,7.137e-05,2]
[360614801,1746903613339,3100.7493052,7.156e-05,2]
[360614802,1746904009684,1619.16342622,7.998e-05,2]
[360614861,1746904231679,-300.0,8.076e-05,2]
[360614863,1746904231689,-300.0,8.076e-05,2]
[360614865,1746904231699,-168.0,8.076e-05,2]
[360614867,1746904231708,-300.0,8.076e-05,2]
[360614869,1746904231717,-300.0,8.076e-05,2]
[360614871,1746904231726,-1200.0,8.076e-05,2]
[360614872,1746904231735,-2794.95340027,8.077e-05,2]
[360614874,1746904231744,-500.0,8.077e-05,2]
[360614876,1746904231753,-500.0,8.077e-05,2]
[360614878,1746904231763,-500.0,8.077e-05,2]
[360614880,1746904231772,-500.0,8.077e-05,2]
[360614881,1746904231782,-255.98987371,8.077e-05,2]
[360614882,1746904231794,-280.0,8.077e-05,2]
[360614883,1746904231803,-500.0,8.077e-05,2]
[360614884,1746904231813,-500.0,8.077e-05,2]
[360614885,1746904231822,-500.0,8.077e-05,2]
[360614886,1746904231831,-500.0,8.077e-05,2]
[360614887,1746904231840,-500.0,8.077e-05,2]
[360614888,1746904231849,-333.01784304,8.078e-05,2]
[360614889,1746904231858,-500.0,8.078e-05,2]
[360614890,1746904231867,-187.55061628,8.078e-05,2]
[360614891,1746904231877,-207.4,8.114e-05,2]
[360614892,1746904231887,-261163.0213831,8.119e-05,2]
[360614893,1746904231896,-546.0,8.177e-05,2]
[360614894,1746904231906,-2239.0,8.177e-05,2]
[360614895,1746904231915,-708.0,8.177e-05,2]
[360614896,1746904231924,-173.68154185,8.177e-05,2]
[360614897,1746904231934,-842.34118046,8.2e-05,2]
[360614898,1746904231943,-160.0,8.2e-05,2]
[360614899,1746904231952,-160.0,8.2e-05,2]
[360614900,1746904231961,-160.0,8.2e-05,2]
[360614901,1746904231970,-314.1579823,8.2e-05,2]
[360614902,1746904231979,-500.0,8.219e-05,2]
[360614903,1746904231988,-400.0,8.219e-05,2]
[360614904,1746904231997,-438.38329411,8.219e-05,2]
[360614905,1746904232006,-400.0,8.219e-05,2]
[360614906,1746904232015,-400.0,8.219e-05,2]
[360614907,1746904232024,-400.0,8.219e-05,2]
[360614908,1746904232033,-488.01,8.219e-05,2]
[360614909,1746904232042,-400.0,8.219e-05,2]
[360614910,1746904232051,-400.0,8.219e-05,2]
[360614911,1746904232061,-402.86,8.219e-05,2]
[360614912,1746904232070,-400.0,8.219e-05,2]
[360614913,1746904232080,-404.01,8.219e-05,2]
[360614914,1746904232089,-400.0,8.219e-05,2]
[360614915,1746904232098,-400.0,8.219e-05,2]
[360614916,1746904232108,-639.76,8.219e-05,2]
[360614917,1746904232117,-400.0,8.219e-05,2]
[360614918,1746904232127,-1168.99,8.219e-05,2]
[360614919,1746904232136,-557.6,8.219e-05,2]
[360614920,1746904232145,-400.0,8.219e-05,2]
[360614921,1746904232154,-400.0,8.219e-05,2]
[360614922,1746904232164,-400.0,8.219e-05,2]
[360614923,1746904232173,-400.0,8.219e-05,2]
[360614924,1746904232183,-400.0,8.219e-05,2]
[360614925,1746904232192,-437.04,8.219e-05,2]
[360614926,1746904232201,-400.0,8.219e-05,2]
[360614927,1746904232211,-400.0,8.219e-05,2]
[360614928,1746904232220,-400.0,8.219e-05,2]
[360614929,1746904232229,-400.0,8.219e-05,2]
[360614930,1746904232238,-400.0,8.219e-05,2]
[360614931,1746904232247,-562.49,8.219e-05,2]
[360614932,1746904232257,-400.0,8.219e-05,2]
[360614933,1746904232266,-400.0,8.219e-05,2]
[360614934,1746904232275,-700.91,8.219e-05,2]
[360614935,1746904232284,-400.0,8.219e-05,2]
[360614936,1746904232293,-400.0,8.219e-05,2]
[360614937,1746904232303,-400.0,8.219e-05,2]
[360614938,1746904232312,-2143.08,8.219e-05,2]
[360614939,1746904232321,-400.0,8.219e-05,2]
[360614940,1746904232331,-400.0,8.219e-05,2]
[360614941,1746904232341,-400.0,8.219e-05,2]
[360614942,1746904232351,-400.0,8.219e-05,2]
[360614943,1746904232360,-912.96,8.219e-05,2]
[360614944,1746904232370,-400.0,8.219e-05,2]
[360614945,1746904232380,-400.0,8.219e-05,2]
[360614946,1746904232390,-400.0,8.219e-05,2]
[360614947,1746904232400,-513.14,8.219e-05,2]
[360614948,1746904232409,-400.0,8.219e-05,2]
[360614949,1746904232419,-195.45355086,8.219e-05,2]
[360614950,1746904232429,-516.12,8.219e-05,2]
[360614951,1746904232438,-230.85070764,8.219e-05,2]
[360614952,1746904232448,-700.2,8.219e-05,2]
[360614953,1746904232457,-1094.45,8.219e-05,2]
[360614954,1746904232468,-986.49,8.219e-05,2]
[360614955,1746904232478,-400.0,8.219e-05,2]
[360614956,1746904232487,-400.0,8.219e-05,2]
[360614957,1746904232497,-459.9647045,8.219e-05,2]
[360614958,1746904232507,-400.0,8.219e-05,2]
[360614959,1746904232516,-400.0,8.219e-05,2]
[360614960,1746904232525,-400.0,8.219e-05,2]
[360614961,1746904232535,-400.0,8.219e-05,2]
[360614962,1746904232544,-690.7,8.219e-05,2]
[360614963,1746904232554,-501.2,8.219e-05,2]
[360614964,1746904232563,-498.68,8.219e-05,2]
[360614965,1746904232572,-400.0,8.219e-05,2]
[360614966,1746904232582,-400.0,8.219e-05,2]
[360614967,1746904232591,-400.0,8.219e-05,2]
[360614968,1746904232601,-491.08,8.219e-05,2]
[360614969,1746904232611,-822.55,8.219e-05,2]
[360614970,1746904232621,-599.83,8.219e-05,2]
[360614971,1746904232631,-400.0,8.219e-05,2]
[360614972,1746904232642,-257.77922133,8.219e-05,2]
[360614973,1746904232651,-1310.52,8.219e-05,2]
[360614974,1746904232661,-496.65921914,8.219e-05,2]
[360614975,1746904232671,-486.47,8.219e-05,2]
[360614976,1746904232680,-400.0,8.219e-05,2]
[360614977,1746904232690,-400.0,8.219e-05,2]
[360614978,1746904232699,-400.0,8.219e-05,2]
[360614979,1746904232709,-233.87021746,8.219e-05,2]
[360614980,1746904232718,-948.77,8.219e-05,2]
[360614981,1746904232728,-400.0,8.219e-05,2]
[360614982,1746904232737,-400.0,8.219e-05,2]
[360614983,1746904232746,-400.0,8.219e-05,2]
[360614984,1746904232756,-400.0,8.219e-05,2]
[360614985,1746904232765,-400.0,8.219e-05,2]
[360614986,1746904232775,-760.68,8.219e-05,2]
[360614987,1746904232787,-400.0,8.219e-05,2]
[360614988,1746904232796,-400.0,8.219e-05,2]
[360614989,1746904232806,-400.0,8.219e-05,2]
[360614990,1746904232815,-400.0,8.219e-05,2]
[360614991,1746904232825,-641.01,8.219e-05,2]
[360614992,1746904232834,-873.56,8.219e-05,2]
[360614993,1746904232843,-400.0,8.219e-05,2]
[360614994,1746904232854,-400.0,8.219e-05,2]
[360614995,1746904232864,-434.06,8.219e-05,2]
[360614996,1746904232874,-400.0,8.219e-05,2]
[360614997,1746904232883,-250.44293964,8.219e-05,2]
[360614998,1746904232893,-1685.69,8.219e-05,2]
[360614999,1746904232902,-775.8,8.219e-05,2]
[360615000,1746904232912,-1132.06,8.219e-05,2]
[360615001,1746904232921,-400.0,8.219e-05,2]
[360615002,1746904232931,-794.0,8.219e-05,2]
[360615003,1746904232941,-400.0,8.219e-05,2]
[360615004,1746904232951,-415.19,8.219e-05,2]
[360615005,1746904232961,-412.37780255,8.219e-05,2]
[360615006,1746904232971,-400.0,8.219e-05,2]
[360615007,1746904232980,-400.0,8.219e-05,2]
[360615008,1746904232990,-400.0,8.219e-05,2]
[360615009,1746904232999,-610.17,8.219e-05,2]
[360615010,1746904233009,-2397.57,8.219e-05,2]
[360615011,1746904233018,-400.0,8.219e-05,2]
[360615012,1746904233028,-831.23,8.219e-05,2]
[360615013,1746904233038,-435.79,8.219e-05,2]
[360615014,1746904233048,-574.64,8.219e-05,2]
[360615015,1746904233058,-400.0,8.219e-05,2]
[360615016,1746904233068,-221.6354104,8.219e-05,2]
[360615017,1746904233078,-400.0,8.219e-05,2]
[360615018,1746904233087,-473.83,8.219e-05,2]
[360615019,1746904233097,-400.0,8.219e-05,2]
[360615020,1746904233107,-400.0,8.219e-05,2]
[360615021,1746904233117,-400.0,8.219e-05,2]
[360615022,1746904233127,-400.0,8.219e-05,2]
[360615023,1746904233138,-400.0,8.219e-05,2]
[360615024,1746904233147,-517.85,8.219e-05,2]
[360615025,1746904233156,-400.0,8.219e-05,2]
[360615026,1746904233167,-400.0,8.219e-05,2]
[360615027,1746904233177,-400.0,8.219e-05,2]
[360615028,1746904233187,-400.0,8.219e-05,2]
[360615029,1746904233197,-1012.43,8.219e-05,2]
[360615030,1746904233207,-593.77,8.219e-05,2]
[360615031,1746904233216,-400.0,8.219e-05,2]
[360615032,1746904233226,-176.6343691,8.219e-05,2]
[360615033,1746904233236,-400.0,8.219e-05,2]
[360615034,1746904233448,-400.0,8.219e-05,2]
[360615035,1746904233460,-400.0,8.219e-05,2]
[360615036,1746904233470,-400.0,8.219e-05,2]
[360615037,1746904233480,-2125.07,8.219e-05,2]
[360615038,1746904233490,-2074.92,8.219e-05,2]
[360615039,1746904233501,-44.49539145,8.219e-05,2]
[360615040,1746904233769,-813.70460855,8.219e-05,2]
[360615041,1746904233780,-400.0,8.219e-05,2]
[360615042,1746904233792,-928.4,8.219e-05,2]
[360615043,1746904233802,-590.18,8.219e-05,2]
[360615044,1746904233811,-400.0,8.219e-05,2]
[360615045,1746904233820,-400.0,8.219e-05,2]
[360615046,1746904233830,-400.0,8.219e-05,2]
[360615047,1746904233841,-400.0,8.219e-05,2]
[360615048,1746904233851,-458.7,8.219e-05,2]
[360615049,1746904233861,-854.39,8.219e-05,2]
[360615050,1746904233871,-822.84,8.219e-05,2]
[360615051,1746904233880,-400.0,8.219e-05,2]
[360615052,1746904233890,-400.0,8.219e-05,2]
[360615053,1746904233899,-460.96,8.219e-05,2]
[360615054,1746904233909,-529.56,8.219e-05,2]
[360615055,1746904233918,-1306.68,8.219e-05,2]
[360615056,1746904233927,-400.0,8.219e-05,2]
[360615057,1746904233937,-1378.65,8.219e-05,2]
[360615058,1746904233947,-931.8,8.219e-05,2]
[360615059,1746904233956,-766.02,8.219e-05,2]
[360615060,1746904233966,-1356.64,8.219e-05,2]
[360615061,1746904233975,-1055.56,8.219e-05,2]
[360615062,1746904233985,-400.0,8.219e-05,2]
[360615063,1746904233994,-400.0,8.219e-05,2]
[360615064,1746904234003,-400.0,8.219e-05,2]
[360615065,1746904234012,-1467.04,8.219e-05,2]
[360615066,1746904234021,-400.0,8.219e-05,2]
[360615067,1746904234030,-400.0,8.219e-05,2]
[360615068,1746904234039,-400.0,8.219e-05,2]
[360615069,1746904234048,-400.0,8.219e-05,2]
[360615070,1746904234058,-365.30133197,8.219e-05,2]
[360615071,1746904234067,-608.24,8.219e-05,2]
[360615072,1746904234077,-498.07,8.219e-05,2]
[360615073,1746904234086,-400.0,8.219e-05,2]
[360615074,1746904234096,-400.0,8.219e-05,2]
[360615075,1746904234105,-400.0,8.219e-05,2]